[Event "ONJK-DE 2019"]
[Site "Borne"]
[Date "2019.08.05"]
[Round "1.10"]
[White "Vleming, Josefien"]
[Black "Arnold, Rhys"]
[Result "0-1"]
[ECO "B50"]
[WhiteElo "584"]
[BlackElo "1604"]
[Annotator "NA"]
[PlyCount "78"]
[EventDate "2019.08.05"]
[EventType "swiss"]
[EventCountry "NED"]
[SourceTitle "playchess.com"]
[Source "ChessBase"]
[SourceQuality "1"]
[TimeControl "2400+30"]

1. e4 {[%emt 0:00:00]} c5 {[%emt 0:00:00]} 2. Nf3 {[%emt 0:00:00]} Nc6 {[%emt 0:00:00]} 3. Nc3 {[%emt 0:00:00]} d6 {[%emt 0:00:01]} 4. Bc4 {[%emt 0:00:15]} Nf6 {[%emt 0:00:30]} 5. d3 {[%emt 0:00:16]} e6 {[%emt 0:00:34]} 6. Bg5 {[%emt 0:00:39]} Be7 {[%emt 0:00:38]} 7. O-O {[%emt 0:01:09]} O-O {[%emt 0:01:06]} 8. Re1 {[%emt 0:01:40]} h6 {[%emt 0:01:55]} 9. Bh4 {[%emt 0:00:29]} e5 {[%emt 0:00:34]} 10. Nd5 {[%emt 0:01:59]} Nxd5 {[%emt 0:00:50]} 11. Bxe7 {[%emt 0:00:13]} Ndxe7 {[%emt 0:00:07]} 12. Nh4 {[%emt 0:01:10]} Na5 {[%emt 0:01:16]} 13. Re3 {[%emt 0:01:43]} Nec6 {[%emt 0:04:43]} 14. Nf5 {[%emt 0:01:42]} Bxf5 {[%emt 0:00:47]} 15. exf5 {[%emt 0:00:45]} Nxc4 {[%emt 0:00:16]} 16. Rg3 {[%emt 0:00:23]} Nb6 {[%emt 0:01:36]} 17. Qg4 {[%emt 0:01:07]} Qf6 {[%emt 0:00:19]} 18. f4 {[%emt 0:03:21]} Rad8 {[%emt 0:03:34]} 19. c3 {[%emt 0:00:39]} Nd5 {[%emt 0:00:51]} 20. d4 {[%emt 0:00:58]} cxd4 {[%emt 0:02:05]} 21. cxd4 {[%emt 0:00:31]} exf4 {[%emt 0:01:00]} 22. Rh3 {[%emt 0:01:40]} Qxd4+ {[%emt 0:00:28]} 23. Kh1 {[%emt 0:00:40]} Qxb2 {[%emt 0:01:15]} 24. Rg1 {[%emt 0:01:06]} Qf6 {[%emt 0:00:36]} 25. g3 {[%emt 0:00:47]} Qg5 {[%emt 0:02:28]} 26. Qf3 {[%emt 0:00:55]} Qxf5 {[%emt 0:03:58]} 27. Rh5 {[%emt 0:00:50]} Ne5 {[%emt 0:02:40]} 28. Qd1 {[%emt 0:00:59]} Qe6 {[%emt 0:00:47]} 29. gxf4 {[%emt 0:00:31]} Nxf4 {[%emt 0:00:39]} 30. Rh4 {[%emt 0:00:38]} Nfg6 {[%emt 0:00:41]} 31. Rb4 {[%emt 0:01:27]} Qf6 {[%emt 0:02:19]} 32. Rxb7 {[%emt 0:01:29]} Qf3+ {[%emt 0:00:24]} 33. Qxf3 {[%emt 0:00:48]} Nxf3 {[%emt 0:00:08]} 34. Rg3 {[%emt 0:00:32]} Nfe5 {[%emt 0:00:21]} 35. Rxa7 {[%emt 0:00:35]} Ra8 {[%emt 0:00:21]} 36. Rga3 {[%emt 0:00:29]} Rxa7 {[%emt 0:00:23]} 37. Rxa7 {[%emt 0:00:12]} Rc8 {[%emt 0:00:23]} 38. a4 {[%emt 0:00:42]} Nf4 {[%emt 0:00:09]} 39. a5 {[%emt 0:00:36]} Rc1# {[%emt 0:00:10]} 0-1

[Event "ONJK-DE 2019"]
[Site "Borne"]
[Date "2019.08.05"]
[Round "1.11"]
[White "Cappan, Stan"]
[Black "Van Groning, Christian"]
[Result "1-0"]
[ECO "C46"]
[WhiteElo "1319"]
[BlackElo "581"]
[Annotator "NA"]
[PlyCount "35"]
[EventDate "2019.08.05"]
[EventType "swiss"]
[EventCountry "NED"]
[SourceTitle "playchess.com"]
[Source "ChessBase"]
[SourceQuality "1"]
[TimeControl "2400+30"]

1. e4 {[%emt 0:00:00]} e5 {[%emt 0:00:00]} 2. Nf3 {[%emt 0:00:00]} Nc6 {[%emt 0:00:00]} 3. Nc3 {[%emt 0:00:00]} Bb4 {[%emt 0:00:02]} 4. a3 {[%emt 0:00:13]} Ba5 {[%emt 0:00:12]} 5. b4 {[%emt 0:00:29]} Bb6 {[%emt 0:00:13]} 6. Bc4 {[%emt 0:00:33]} Nf6 {[%emt 0:00:23]} 7. d3 {[%emt 0:00:30]} Nd4 {[%emt 0:00:27]} 8. Nxe5 {[%emt 0:00:29]} Rf8 {[%emt 0:00:17]} 9. Bg5 {[%emt 0:00:19]} d6 {[%emt 0:01:13]} 10. Nf3 {[%emt 0:00:09]} Nxf3+ {[%emt 0:00:20]} 11. Qxf3 {[%emt 0:00:24]} Bg4 {[%emt 0:00:19]} 12. Bxf6 {[%emt 0:00:41]} Qxf6 {[%emt 0:00:27]} 13. Qxg4 {[%emt 0:00:59]} Qxf2+ {[%emt 0:00:16]} 14. Kd1 {[%emt 0:00:14]} Qd4 {[%emt 0:00:53]} 15. Kd2 {[%emt 0:00:57]} g6 {[%emt 0:00:32]} 16. Nd5 {[%emt 0:00:45]} h5 {[%emt 0:00:35]} 17. Qg5 {[%emt 0:00:27]} c6 {[%emt 0:00:23]} 18. Qe7# {[%emt 0:00:16]} 1-0

[Event "ONJK-DE 2019"]
[Site "Borne"]
[Date "2019.08.05"]
[Round "1.12"]
[White "Bos, Yaro"]
[Black "De Rycke, Killian"]
[Result "0-1"]
[ECO "C01"]
[WhiteElo "553"]
[BlackElo "1319"]
[Annotator "NA"]
[PlyCount "120"]
[EventDate "2019.08.05"]
[EventType "swiss"]
[EventCountry "NED"]
[SourceTitle "playchess.com"]
[Source "ChessBase"]
[SourceQuality "1"]
[TimeControl "2400+30"]

1. e4 {[%emt 0:00:00]} e6 {[%emt 0:00:00]} 2. d4 {[%emt 0:00:00]} d5 {[%emt 0:00:00]} 3. exd5 {[%emt 0:00:00]} exd5 {[%emt 0:00:00]} 4. Bb5+ {[%emt 0:00:06]} Bd7 {[%emt 0:00:08]} 5. Qe2+ {[%emt 0:00:12]} Qe7 {[%emt 0:00:22]} 6. Bxd7+ {[%emt 0:00:23]} Nxd7 {[%emt 0:00:07]} 7. Nc3 {[%emt 0:00:29]} Qxe2+ {[%emt 0:00:08]} 8. Ncxe2 {[%emt 0:00:12]} c5 {[%emt 0:00:16]} 9. Nf3 {[%emt 0:01:19]} Ngf6 {[%emt 0:00:28]} 10. Bg5 {[%emt 0:00:25]} Be7 {[%emt 0:00:14]} 11. O-O {[%emt 0:00:36]} O-O {[%emt 0:00:08]} 12. Ne5 {[%emt 0:00:16]} Rfe8 {[%emt 0:00:39]} 13. Bxf6 {[%emt 0:00:22]} Nxf6 {[%emt 0:00:22]} 14. Nd3 {[%emt 0:00:23]} cxd4 {[%emt 0:00:45]} 15. Nxd4 {[%emt 0:01:17]} Rac8 {[%emt 0:00:09]} 16. Rfe1 {[%emt 0:00:12]} Kf8 {[%emt 0:01:45]} 17. Re2 {[%emt 0:00:32]} Bc5 {[%emt 0:02:18]} 18. Rxe8+ {[%emt 0:00:17]} Nxe8 {[%emt 0:00:13]} 19. Nb3 {[%emt 0:00:19]} Bb6 {[%emt 0:00:30]} 20. Rd1 {[%emt 0:00:40]} Rxc2 {[%emt 0:00:15]} 21. Ne1 {[%emt 0:00:17]} Bxf2+ {[%emt 0:00:35]} 22. Kf1 {[%emt 0:00:29]} Bxe1 {[%emt 0:00:11]} 23. Kxe1 {[%emt 0:00:17]} Rxb2 {[%emt 0:00:09]} 24. Rxd5 {[%emt 0:00:19]} Rxa2 {[%emt 0:00:10]} 25. Kf1 {[%emt 0:00:55]} Rb2 {[%emt 0:00:29]} 26. Nc5 {[%emt 0:00:12]} Nf6 {[%emt 0:00:53]} 27. Nd7+ {[%emt 0:00:55]} Nxd7 {[%emt 0:00:18]} 28. Rxd7 {[%emt 0:00:09]} Rb1+ {[%emt 0:00:21]} 29. Kf2 {[%emt 0:00:11]} a5 {[%emt 0:00:36]} 30. Rd8+ {[%emt 0:00:14]} Ke7 {[%emt 0:00:08]} 31. Ra8 {[%emt 0:00:11]} Ra1 {[%emt 0:00:25]} 32. Ra7 {[%emt 0:00:07]} Ra2+ {[%emt 0:00:27]} 33. Kg1 {[%emt 0:00:14]} a4 {[%emt 0:00:33]} 34. Rxb7+ {[%emt 0:00:09]} Kf6 {[%emt 0:00:19]} 35. h3 {[%emt 0:00:29]} Kg6 {[%emt 0:00:18]} 36. Rb6+ {[%emt 0:00:16]} f6 {[%emt 0:00:12]} 37. Kh2 {[%emt 0:00:23]} a3 {[%emt 0:00:25]} 38. Rb1 {[%emt 0:00:09]} Rb2 {[%emt 0:00:30]} 39. Ra1 {[%emt 0:00:09]} a2 {[%emt 0:00:10]} 40. Kg3 {[%emt 0:00:11]} Kf5 {[%emt 0:00:25]} 41. Kf3 {[%emt 0:00:25]} Ke5 {[%emt 0:00:10]} 42. g4 {[%emt 0:00:19]} Kd4 {[%emt 0:00:14]} 43. Kf4 {[%emt 0:00:50]} Kc3 {[%emt 0:00:26]} 44. Kf5 {[%emt 0:00:11]} Kb3 {[%emt 0:00:08]} 45. Ke6 {[%emt 0:00:56]} Rb1 {[%emt 0:00:38]} 46. Rxa2 {[%emt 0:00:07]} Kxa2 {[%emt 0:00:09]} 47. Kf7 {[%emt 0:00:16]} Rh1 {[%emt 0:00:08]} 48. Kxg7 {[%emt 0:00:31]} Rxh3 {[%emt 0:00:07]} 49. Kxf6 {[%emt 0:00:52]} Rg3 {[%emt 0:00:44]} 50. Kg5 {[%emt 0:00:06]} h5 {[%emt 0:00:34]} 51. Kxh5 {[%emt 0:00:30]} Kb3 52. g5 {[%emt 0:00:30]} Kc4 {[%emt 0:01:15]} 53. g6 {[%emt 0:00:12]} Kd5 {[%emt 0:00:21]} 54. Kh6 {[%emt 0:00:15]} Ke6 {[%emt 0:00:21]} 55. Kh7 {[%emt 0:00:06]} Kf6 {[%emt 0:00:27]} 56. g7 {[%emt 0:00:16]} Rxg7+ {[%emt 0:00:07]} 57. Kh8 {[%emt 0:00:08]} Rg2 {[%emt 0:00:13]} 58. Kh7 {[%emt 0:00:14]} Rg1 {[%emt 0:00:17]} 59. Kh8 {[%emt 0:00:20]} Kf7 {[%emt 0:00:09]} 60. Kh7 {[%emt 0:00:04]} Rh1# {[%emt 0:00:23]} 0-1

[Event "ONJK-DE 2019"]
[Site "Borne"]
[Date "2019.08.05"]
[Round "1.13"]
[White "Mainka, Ingmar"]
[Black "Sigida, Ilya"]
[Result "1-0"]
[ECO "C45"]
[WhiteElo "1287"]
[BlackElo "533"]
[Annotator "NA"]
[PlyCount "49"]
[EventDate "2019.08.05"]
[EventType "swiss"]
[EventCountry "NED"]
[SourceTitle "playchess.com"]
[Source "ChessBase"]
[SourceQuality "1"]
[TimeControl "2400+30"]

1. e4 {[%emt 0:00:00]} e5 {[%emt 0:00:00]} 2. Nf3 {[%emt 0:00:00]} Nc6 {[%emt 0:00:00]} 3. d4 {[%emt 0:00:00]} exd4 {[%emt 0:00:05]} 4. Nxd4 {[%emt 0:00:00]} Nxd4 {[%emt 0:00:13]} 5. Qxd4 {[%emt 0:00:01]} Nf6 {[%emt 0:00:38]} 6. e5 {[%emt 0:00:08]} Qe7 {[%emt 0:00:32]} 7. Be2 {[%emt 0:00:19]} c5 {[%emt 0:01:02]} 8. exf6 {[%emt 0:00:13]} gxf6 {[%emt 0:00:44]} 9. Qe3 {[%emt 0:00:09]} Qxe3 {[%emt 0:00:22]} 10. Bxe3 {[%emt 0:00:04]} b6 {[%emt 0:00:34]} 11. Bf3 {[%emt 0:00:29]} Rb8 {[%emt 0:00:39]} 12. O-O {[%emt 0:00:09]} Bb7 {[%emt 0:00:43]} 13. Bf4 {[%emt 0:00:28]} Rg8 {[%emt 0:00:40]} 14. Bxb8 {[%emt 0:00:14]} Bxf3 {[%emt 0:00:20]} 15. Bg3 {[%emt 0:00:14]} Bb7 {[%emt 0:00:43]} 16. Nc3 {[%emt 0:00:21]} Bd6 {[%emt 0:00:27]} 17. Rad1 {[%emt 0:00:24]} Bxg3 {[%emt 0:00:30]} 18. fxg3 {[%emt 0:00:07]} h5 {[%emt 0:00:39]} 19. Nd5 {[%emt 0:00:19]} Rg5 {[%emt 0:01:44]} 20. Nxf6+ {[%emt 0:00:30]} Kf8 {[%emt 0:00:59]} 21. Nh7+ {[%emt 0:00:11]} Kg7 {[%emt 0:01:18]} 22. Nxg5 {[%emt 0:00:18]} f6 {[%emt 0:00:28]} 23. Rxd7+ {[%emt 0:00:31]} Kg6 {[%emt 0:00:33]} 24. Nh7 {[%emt 0:00:08]} Be4 {[%emt 0:01:03]} 25. Rxf6# {[%emt 0:00:15]} 1-0

[Event "ONJK-DE 2019"]
[Site "Borne"]
[Date "2019.08.05"]
[Round "1.14"]
[White "Elferink, Duncan"]
[Black "Madularea, David"]
[Result "0-1"]
[ECO "B56"]
[WhiteElo "518"]
[BlackElo "1234"]
[Annotator "NA"]
[PlyCount "66"]
[EventDate "2019.08.05"]
[EventType "swiss"]
[EventCountry "NED"]
[SourceTitle "playchess.com"]
[Source "ChessBase"]
[SourceQuality "1"]
[TimeControl "2400+30"]

1. e4 {[%emt 0:00:00]} c5 {[%emt 0:00:01]} 2. Nf3 {[%emt 0:00:03]} Nc6 {[%emt 0:00:39]} 3. d4 {[%emt 0:00:17]} cxd4 {[%emt 0:00:35]} 4. Nxd4 {[%emt 0:00:08]} Nf6 {[%emt 0:01:03]} 5. Nc3 {[%emt 0:00:44]} d6 {[%emt 0:00:45]} 6. Nxc6 {[%emt 0:00:24]} bxc6 {[%emt 0:00:35]} 7. Bd3 {[%emt 0:00:53]} e5 {[%emt 0:01:23]} 8. O-O {[%emt 0:00:29]} Be6 {[%emt 0:02:56]} 9. Bg5 {[%emt 0:00:15]} Be7 {[%emt 0:00:59]} 10. Bxf6 {[%emt 0:00:35]} Bxf6 {[%emt 0:00:31]} 11. b3 {[%emt 0:00:52]} d5 {[%emt 0:01:53]} 12. exd5 {[%emt 0:00:22]} cxd5 {[%emt 0:00:49]} 13. Bb5+ {[%emt 0:00:29]} Kf8 {[%emt 0:01:16]} 14. Bc6 {[%emt 0:00:31]} Rc8 {[%emt 0:00:10]} 15. Bxd5 {[%emt 0:00:17]} Rxc3 {[%emt 0:00:10]} 16. Bxe6 {[%emt 0:00:42]} Qxd1 {[%emt 0:00:28]} 17. Rfxd1 {[%emt 0:00:11]} fxe6 {[%emt 0:00:20]} 18. Rac1 {[%emt 0:00:47]} Ke7 {[%emt 0:00:36]} 19. Rd2 {[%emt 0:00:27]} Bg5 {[%emt 0:00:22]} 20. Rcd1 {[%emt 0:00:28]} Bxd2 {[%emt 0:00:24]} 21. Rxd2 {[%emt 0:00:02]} Rhc8 {[%emt 0:00:20]} 22. g3 {[%emt 0:00:24]} Rxc2 {[%emt 0:00:33]} 23. Rxc2 {[%emt 0:00:12]} Rxc2 {[%emt 0:00:05]} 24. a4 {[%emt 0:00:26]} Kf6 {[%emt 0:00:33]} 25. b4 {[%emt 0:01:07]} Kg5 {[%emt 0:00:22]} 26. Kg2 {[%emt 0:00:13]} e4 {[%emt 0:00:45]} 27. Kf1 {[%emt 0:00:20]} Kg4 {[%emt 0:00:21]} 28. h3+ {[%emt 0:00:21]} Kf3 {[%emt 0:00:22]} 29. Ke1 {[%emt 0:00:13]} Rxf2 {[%emt 0:00:15]} 30. b5 {[%emt 0:00:21]} e3 {[%emt 0:00:16]} 31. a5 {[%emt 0:00:24]} Ra2 {[%emt 0:00:15]} 32. Kd1 {[%emt 0:00:22]} e2+ {[%emt 0:00:16]} 33. Ke1 {[%emt 0:00:21]} Ke3 {[%emt 0:00:14]} 0-1

[Event "ONJK-DE 2019"]
[Site "Borne"]
[Date "2019.08.06"]
[Round "2.1"]
[White "Coffeng, Jay"]
[Black "Pick, Max"]
[Result "0-1"]
[ECO "C11"]
[WhiteElo "1185"]
[BlackElo "1515"]
[Annotator "NA"]
[PlyCount "182"]
[EventDate "2019.08.05"]
[EventType "swiss"]
[EventCountry "NED"]
[SourceTitle "playchess.com"]
[Source "ChessBase"]
[SourceQuality "1"]
[TimeControl "2400+30"]

1. e4 {[%emt 0:00:00]} e6 {[%emt 0:00:00]} 2. d4 {[%emt 0:00:06]} d5 {[%emt 0:00:08]} 3. Nc3 {[%emt 0:00:48]} Nf6 {[%emt 0:02:09]} 4. e5 {[%emt 0:01:58]} Nfd7 {[%emt 0:00:32]} 5. Bb5 {[%emt 0:02:14]} c6 {[%emt 0:03:03]} 6. Ba4 {[%emt 0:01:56]} b5 {[%emt 0:02:44]} 7. Bb3 {[%emt 0:00:16]} Ba6 {[%emt 0:04:28]} 8. Nce2 {[%emt 0:07:53]} c5 {[%emt 0:02:54]} 9. c3 {[%emt 0:00:26]} Nc6 {[%emt 0:01:29]} 10. f4 {[%emt 0:02:28]} Rc8 {[%emt 0:02:18]} 11. Nf3 {[%emt 0:00:45]} Nb6 {[%emt 0:02:34]} 12. Bd2 {[%emt 0:03:51]} b4 {[%emt 0:02:02]} 13. Bc2 {[%emt 0:01:07]} bxc3 {[%emt 0:00:27]} 14. Bxc3 {[%emt 0:00:15]} cxd4 {[%emt 0:00:43]} 15. Nexd4 {[%emt 0:00:24]} Bc5 {[%emt 0:07:41]} 16. f5 {[%emt 0:01:09]} Bxd4 {[%emt 0:02:41]} 17. Bxd4 {[%emt 0:00:26]} Nb4 {[%emt 0:03:01]} 18. Rc1 {[%emt 0:06:50]} Rxc2 {[%emt 0:01:58]} 19. Rxc2 {[%emt 0:01:14]} Nd3+ {[%emt 0:00:11]} 20. Kd2 {[%emt 0:01:43]} Nc4+ {[%emt 0:00:31]} 21. Rxc4 {[%emt 0:00:43]} dxc4 {[%emt 0:00:34]} 22. Qa4+ {[%emt 0:00:21]} Qd7 {[%emt 0:01:15]} 23. Qxa6 {[%emt 0:01:07]} Nxe5 {[%emt 0:00:41]} 24. Qxa7 {[%emt 0:01:36]} Nxf3+ {[%emt 0:00:56]} 25. gxf3 {[%emt 0:00:16]} Qxa7 {[%emt 0:00:58]} 26. Bxa7 {[%emt 0:00:09]} exf5 {[%emt 0:00:20]} 27. Re1+ {[%emt 0:01:01]} Kd7 {[%emt 0:00:20]} 28. Bd4 {[%emt 0:00:27]} f6 {[%emt 0:00:51]} 29. Rg1 {[%emt 0:00:18]} g6 {[%emt 0:00:36]} 30. Bxf6 {[%emt 0:00:23]} Ra8 {[%emt 0:00:11]} 31. a3 {[%emt 0:00:20]} Ke6 {[%emt 0:00:09]} 32. Bd4 {[%emt 0:00:40]} Kd5 {[%emt 0:00:09]} 33. Kc3 {[%emt 0:00:09]} Rb8 {[%emt 0:00:17]} 34. Re1 {[%emt 0:00:16]} Rb3+ {[%emt 0:00:10]} 35. Kc2 {[%emt 0:00:39]} Kxd4 {[%emt 0:01:09]} 36. Rd1+ {[%emt 0:01:01]} Kc5 {[%emt 0:00:50]} 37. Rd7 {[%emt 0:00:29]} h6 {[%emt 0:00:27]} 38. f4 {[%emt 0:01:58]} Rf3 {[%emt 0:00:35]} 39. Rg7 {[%emt 0:00:29]} Rxf4 {[%emt 0:00:51]} 40. Rxg6 {[%emt 0:00:08]} Rf2+ {[%emt 0:00:04]} 41. Kc3 {[%emt 0:00:56]} Rxh2 {[%emt 0:00:21]} 42. Rf6 {[%emt 0:00:17]} Rh3+ {[%emt 0:00:55]} 43. Kc2 {[%emt 0:00:14]} Rh5 {[%emt 0:00:17]} 44. Kc3 {[%emt 0:01:14]} Kd5 {[%emt 0:01:06]} 45. Kb4 {[%emt 0:00:14]} Ke5 {[%emt 0:00:23]} 46. Rf8 {[%emt 0:00:26]} Rh2 {[%emt 0:00:13]} 47. Kxc4 {[%emt 0:02:14]} Rxb2 {[%emt 0:00:14]} 48. a4 {[%emt 0:00:16]} Ke4 {[%emt 0:00:37]} 49. Re8+ {[%emt 0:00:11]} Kf3 {[%emt 0:00:06]} 50. Kd3 {[%emt 0:00:43]} Ra2 {[%emt 0:00:11]} 51. Rh8 {[%emt 0:01:14]} Rxa4 {[%emt 0:02:14]} 52. Rxh6 {[%emt 0:00:07]} Rg4 {[%emt 0:00:20]} 53. Re6 {[%emt 0:01:31]} f4 {[%emt 0:01:21]} 54. Kd2 {[%emt 0:00:54]} Rg2+ {[%emt 0:01:19]} 55. Ke1 {[%emt 0:00:30]} Ra2 {[%emt 0:00:13]} 56. Rg6 {[%emt 0:00:38]} Ra4 {[%emt 0:00:18]} 57. Rg7 {[%emt 0:01:24]} Ke3 {[%emt 0:00:10]} 58. Re7+ {[%emt 0:00:27]} Kf3 {[%emt 0:00:25]} 59. Rg7 {[%emt 0:00:13]} Ra1+ {[%emt 0:00:10]} 60. Kd2 {[%emt 0:00:09]} Kf2 {[%emt 0:00:06]} 61. Rg8 {[%emt 0:00:57]} f3 {[%emt 0:00:08]} 62. Rg7 {[%emt 0:00:07]} Rg1 {[%emt 0:00:09]} 63. Rf7 {[%emt 0:00:14]} Rg3 {[%emt 0:00:06]} 64. Re7 {[%emt 0:00:22]} Kg2 {[%emt 0:00:22]} 65. Rf7 {[%emt 0:00:22]} Kf1 {[%emt 0:00:09]} 66. Kd1 {[%emt 0:00:39]} f2 {[%emt 0:00:14]} 67. Kd2 {[%emt 0:00:34]} Rg2 {[%emt 0:00:05]} 68. Rf3 {[%emt 0:02:35]} Kg1 {[%emt 0:00:12]} 69. Rxf2 {[%emt 0:00:13]} Rxf2+ {[%emt 0:00:11]} 70. Ke3 {[%emt 0:00:04]} Kg2 {[%emt 0:00:07]} 71. Ke4 {[%emt 0:00:05]} Rf3 {[%emt 0:00:08]} 72. Ke5 {[%emt 0:00:07]} Kg3 {[%emt 0:00:03]} 73. Ke4 {[%emt 0:00:15]} Kg4 {[%emt 0:00:12]} 74. Ke5 {[%emt 0:00:12]} Rf4 {[%emt 0:00:07]} 75. Kd5 {[%emt 0:00:11]} Kf5 {[%emt 0:00:07]} 76. Kd6 {[%emt 0:00:13]} Re4 {[%emt 0:00:04]} 77. Kd5 {[%emt 0:00:22]} Ra4 {[%emt 0:00:12]} 78. Kd6 {[%emt 0:00:21]} Ra5 {[%emt 0:00:13]} 79. Kc6 {[%emt 0:00:08]} Ke6 {[%emt 0:00:14]} 80. Kb6 {[%emt 0:00:15]} Rd5 {[%emt 0:00:04]} 81. Kc6 {[%emt 0:00:07]} Rd1 {[%emt 0:00:09]} 82. Kc5 {[%emt 0:00:15]} Rd8 {[%emt 0:00:10]} 83. Kc4 {[%emt 0:00:11]} Ke5 {[%emt 0:00:07]} 84. Kc3 {[%emt 0:00:11]} Ke4 {[%emt 0:00:04]} 85. Kc2 {[%emt 0:00:06]} Ke3 {[%emt 0:00:02]} 86. Kc1 {[%emt 0:00:09]} Rd2 {[%emt 0:00:02]} 87. Kb1 {[%emt 0:00:14]} Kd3 {[%emt 0:00:05]} 88. Kc1 {[%emt 0:00:14]} Kc3 {[%emt 0:00:03]} 89. Kb1 {[%emt 0:00:12]} Rd1+ {[%emt 0:00:04]} 90. Ka2 {[%emt 0:00:11]} Rh1 {[%emt 0:00:02]} 91. Ka3 {[%emt 0:00:16]} Ra1# {[%emt 0:00:04]} 0-1

[Event "ONJK-DE 2019"]
[Site "Borne"]
[Date "2019.08.06"]
[Round "2.2"]
[White "Yeh, Nora"]
[Black "Van Leeuwen, Robin"]
[Result "1/2-1/2"]
[ECO "D02"]
[WhiteElo "1459"]
[BlackElo "1446"]
[Annotator "NA"]
[PlyCount "53"]
[EventDate "2019.08.05"]
[EventType "swiss"]
[EventCountry "NED"]
[SourceTitle "playchess.com"]
[Source "ChessBase"]
[SourceQuality "1"]
[TimeControl "2400+30"]

1. d4 {[%emt 0:00:00]} d5 {[%emt 0:00:00]} 2. Nf3 {[%emt 0:00:00]} Nf6 {[%emt 0:00:10]} 3. Bf4 {[%emt 0:00:00]} e6 {[%emt 0:01:01]} 4. e3 {[%emt 0:00:17]} Bd7 {[%emt 0:00:39]} 5. c4 {[%emt 0:00:25]} c6 {[%emt 0:00:52]} 6. Nc3 {[%emt 0:00:31]} Be7 {[%emt 0:00:48]} 7. Bd3 {[%emt 0:00:36]} O-O {[%emt 0:00:48]} 8. O-O {[%emt 0:00:29]} Nh5 {[%emt 0:02:43]} 9. Be5 {[%emt 0:02:54]} Nf6 {[%emt 0:05:22]} 10. Rc1 {[%emt 0:01:42]} Bc8 {[%emt 0:02:28]} 11. Qc2 {[%emt 0:02:38]} Nbd7 {[%emt 0:01:24]} 12. cxd5 {[%emt 0:06:53]} exd5 {[%emt 0:02:00]} 13. Bxf6 {[%emt 0:04:35]} Nxf6 {[%emt 0:00:21]} 14. Ne5 {[%emt 0:01:50]} Re8 {[%emt 0:03:29]} 15. f4 {[%emt 0:06:12]} h6 {[%emt 0:01:05]} 16. Rf3 {[%emt 0:06:50]} Be6 {[%emt 0:09:26]} 17. Rg3 {[%emt 0:04:03]} Rc8 {[%emt 0:08:05]} 18. f5 {[%emt 0:02:20]} Bd7 {[%emt 0:00:53]} 19. Ne2 {[%emt 0:01:09]} Bd6 {[%emt 0:01:19]} 20. Nxd7 {[%emt 0:02:10]} Qxd7 {[%emt 0:01:08]} 21. Rf3 {[%emt 0:00:38]} c5 {[%emt 0:01:13]} 22. dxc5 {[%emt 0:00:39]} Bxc5 {[%emt 0:00:57]} 23. Qd2 {[%emt 0:00:53]} Ng4 {[%emt 0:01:39]} 24. Nd4 {[%emt 0:02:06]} Bb6 {[%emt 0:01:52]} 25. Bb5 {[%emt 0:00:42]} Qe7 {[%emt 0:01:27]} 26. Bxe8 {[%emt 0:00:35]} Rxe8 {[%emt 0:00:12]} 27. Re1 {[%emt 0:00:54]} 1/2-1/2

[Event "ONJK-DE 2019"]
[Site "Borne"]
[Date "2019.08.06"]
[Round "2.3"]
[White "Froeyman, Hugo"]
[Black "Folkers, Sono"]
[Result "1-0"]
[ECO "C66"]
[WhiteElo "1598"]
[BlackElo "1035"]
[Annotator "NA"]
[PlyCount "73"]
[EventDate "2019.08.05"]
[EventType "swiss"]
[EventCountry "NED"]
[SourceTitle "playchess.com"]
[Source "ChessBase"]
[SourceQuality "1"]
[TimeControl "2400+30"]

1. e4 {[%emt 0:00:00]} e5 {[%emt 0:00:00]} 2. Nf3 {[%emt 0:00:00]} Nc6 {[%emt 0:00:00]} 3. Nc3 {[%emt 0:00:00]} Nf6 {[%emt 0:00:33]} 4. Bb5 {[%emt 0:00:00]} d6 {[%emt 0:01:10]} 5. O-O {[%emt 0:00:32]} Bd7 {[%emt 0:00:34]} 6. d4 {[%emt 0:00:13]} Bg4 {[%emt 0:02:47]} 7. dxe5 {[%emt 0:01:37]} Bxf3 {[%emt 0:00:59]} 8. Qxf3 {[%emt 0:01:21]} dxe5 {[%emt 0:01:16]} 9. Bg5 {[%emt 0:00:24]} Qd6 {[%emt 0:04:21]} 10. Rad1 {[%emt 0:01:18]} Qe6 {[%emt 0:01:21]} 11. Bxf6 {[%emt 0:00:38]} Qxf6 {[%emt 0:01:38]} 12. Qxf6 {[%emt 0:00:28]} gxf6 {[%emt 0:00:09]} 13. Nd5 {[%emt 0:00:06]} O-O-O {[%emt 0:02:43]} 14. Bxc6 {[%emt 0:01:36]} bxc6 {[%emt 0:01:11]} 15. Nxf6 {[%emt 0:01:09]} Be7 {[%emt 0:01:17]} 16. Ng4 {[%emt 0:00:30]} f6 {[%emt 0:00:52]} 17. Nh6 {[%emt 0:00:36]} Rhf8 {[%emt 0:02:02]} 18. Nf5 {[%emt 0:00:46]} Bc5 {[%emt 0:03:30]} 19. a3 {[%emt 0:01:41]} Rg8 {[%emt 0:02:43]} 20. b4 {[%emt 0:00:25]} Bd4 {[%emt 0:01:19]} 21. c3 {[%emt 0:00:29]} Bb6 {[%emt 0:00:44]} 22. Ne7+ {[%emt 0:00:39]} Kb7 {[%emt 0:00:56]} 23. Nxg8 {[%emt 0:00:22]} Rxg8 {[%emt 0:00:09]} 24. c4 {[%emt 0:01:13]} c5 {[%emt 0:01:03]} 25. b5 {[%emt 0:00:00]} Rg4 {[%emt 0:00:42]} 26. f3 {[%emt 0:00:24]} Rg8 {[%emt 0:00:44]} 27. Rd7 {[%emt 0:01:32]} h6 {[%emt 0:01:42]} 28. Rfd1 {[%emt 0:00:44]} a6 {[%emt 0:01:24]} 29. a4 {[%emt 0:00:12]} Ba5 {[%emt 0:01:36]} 30. R7d5 {[%emt 0:01:59]} Bb6 {[%emt 0:00:51]} 31. h4 {[%emt 0:00:52]} a5 {[%emt 0:01:14]} 32. Kh2 {[%emt 0:01:20]} Ba7 {[%emt 0:01:16]} 33. Kh3 {[%emt 0:00:41]} Bb6 {[%emt 0:00:41]} 34. g4 {[%emt 0:00:34]} Ba7 {[%emt 0:00:21]} 35. Rd8 {[%emt 0:00:13]} Rg6 {[%emt 0:00:38]} 36. h5 {[%emt 0:00:16]} Rg5 {[%emt 0:00:23]} 37. Rh8 {[%emt 0:00:14]} 1-0